{"text_format":"1","workbook":"xlsx","n_sheets":1,"sheets":["it_IT"],"not_rendered":{"charts":0,"images":1,"macros":1,"external_links":0,"defined_names":3,"comments":0,"pivot_tables":0},"unopened":[],"bounds":{"document_bytes":16777216,"sheet_cells":100000,"rows_first":2000,"rows_last":500,"rows_between":2000,"halvings":0,"cell_chars":16384,"cell_head_chars":4096},"cells_cut":0,"cells_raw":0,"read":"whole","date_system":"1900"}

{"sheet":"it_IT","index":0,"n_rows":870,"n_cols":9,"rows_kept":870,"cut":false,"hidden":false,"merged":[[1,3,5,8]]}
[]
[null,null,null,"ISTRUZIONI PER L'UTILIZZO DEL PRESENTE FILE DI SIMULAZIONE\nPer simulare il corrispettivo dovuto per l'iscrizione all'Albo Fornitori di GESAC, attenersi alle seguenti disposizioni:\n● attivare le macro del presente file, cliccando su \"Abilita contenuto\"\n● inserire una \"x\" nelle celle rosa della colonna G, corrispondenti alle categorie selezionate.\n● nella cella H9 verrà visualizzato l'importo dovuto (IVA esclusa); l'importo da versare a GESAC è quello comprensivo di IVA, visualizzabile nella cella gialla I9.\n\nEstremi per il pagamento:\nBanca Intesa Sanpaolo S.p.A.., Swift BCITITMM, IBAN IT 66 X 03069 03521 100000001449, INTESTATO a GE.S.A.C. S.P.A.\nCAUSALE “Corrispettivo per l’iscrizione a n. ___ categorie merceologiche dell’Albo Fornitori GESAC” "]
[]
[]
[null,"GE.S.A.C. S.p.A."]
[null,"Albero delle categorie merceologiche"]
[]
[null,null,null,null,null,null,null,"simulazione costo","importo da bonificare"]
[null,"CODICE CATEGORIA","NOME CATEGORIA","selezione categoria","costo singola categoria\n(IVA esclusa)","costo singola categoria\n(IVA inclusa)","simulazione\n(selezionare con una \"x\" le categorie di interesse)",{"$f":"SUM(H10:H870)","v":0},{"$f":"+(H9*22%)+H9","v":0}]
[null,"A","ALBO FORNITORI",""]
[null,"A01","LAVORI E SERVIZI",""]
[null,"A0101","LAVORI EDILI - NO SOA",""]
[null,"A010101","Controsoffittature","√",50,{"$f":"E13*1.22","v":61},null,{"$f":"IF(G13<>\"\",E13,\"\")","v":""}]
[null,"A010102","Fornitura e Manutenzione Tappeti","√",50,{"$f":"E14*1.22","v":61},null,{"$f":"IF(G14<>\"\",E14,\"\")","v":""}]
[null,"A010103","Materiali di costruzione e ingegneria","√",50,61,null,""]
[null,"A010104","Piccole riparazioni fabbrili","√",100,122,null,""]
[null,"A010105","Prefabbricati","√",50,61,null,""]
[null,"A010106","Riparazioni strutturali","√",50,61,null,""]
[null,"A0102","IMPIANTISTICA",""]
[null,"A010201","Impianti antincendio","√",100,{"$f":"E20*1.22","v":122},null,""]
[null,"A010202","Impianti di condizionamento",""]
[null,"A01020201","Impianti di condizionamento - manutenzione","√",100,{"$f":"E22*1.22","v":122},null,""]
[null,"A01020202","Impianti di condizionamento - ricambi","√",50,61,null,""]
[null,"A010203","Impianti di distribuzione ossigeno medicale","√",50,61,null,""]
[null,"A010204","Impianti di risalita passeggeri (es. scale mobili)","√",100,122,null,""]
[null,"A010205","Impianti elettrici","√",50,61,null,""]
[null,"A010206","Impianti elevatori","√",100,122,null,""]
[null,"A010207","Impianti smistamento bagagli - manutenzione","√",100,122,null,""]
[null,"A010208","Installazioni e impianti fissi","√",50,61,null,""]
[null,"A0103","LAVORI EDILI - SOA",""]
[null,"A010301","OG1 - Edifici civili e industriali","√",100,{"$f":"E31*1.22","v":122},null,""]
[null,"A010302","OG2 - Restauro e manutenzione dei beni immobili sottoposti a tutela ai sensi delle disposizioni in materia di beni culturali e ambientali","√",100,122,null,""]
[null,"A010303","OG3 - Strade, autostrade, ponti, viadotti, ferrovie, linee tranviarie, metropolitane, funicolari, piste aeroportuali, e relative opere complementari","√",100,122,null,""]
[null,"A010304","OG6 - Acquedotti, gasdotti, oleodotti, opere di irrigazione e di evacuazione","√",100,122,null,""]
[null,"A010305","OG8 - Opere fluviali, di difesa, di sistemazione idraulica e di bonifica","√",100,122,null,""]
[null,"A010306","OG9 - Impianti per la produzione di energia elettrica","√",100,122,null,""]
[null,"A010307","OG10 - Impianti per la trasformazione alta/media tensione e per la distribuzione di energia elettrica in corrente alternata e continua","√",100,122,null,""]
[null,"A010308","OG11 - Impianti tecnologici","√",100,122,null,""]
[null,"A010309","OG12 - Opere ed impianti di bonifica e protezione ambientale","√",100,122,null,""]
[null,"A010310","OS1 - Lavori in terra","√",100,122,null,""]
[null,"A010311","OS3 - Impianti idrico - sanitario, cucine, lavanderie","√",100,122,null,""]
[null,"A010312","OS4 - Impianti elettromeccanici trasportatori","√",100,122,null,""]
[null,"A010313","OS5 - Impianti pneumatici e antintrusione","√",100,122,null,""]
[null,"A010314","OS6 - Finiture di opere generali in materiali lignei, plastici, metallici e vetrosi","√",100,122,null,""]
[null,"A010315","OS7 - Finiture di opere generali di natura edile","√",100,122,null,""]
[null,"A010316","OS8 - Finiture di opere generali di natura tecnica","√",100,122,null,""]
[null,"A010317","OS9 - Impianti per la segnaletica luminosa e la sicurezza del traffico","√",100,122,null,""]
[null,"A010318","OS10 - Segnaletica stradale non luminosa","√",100,122,null,""]
[null,"A010319","OS11 - Impianti tecnologici","√",100,122,null,""]
[null,"A010320","OS12 - Barriere e protezioni stradali","√",100,122,null,""]
[null,"A010321","OS13 - Strutture prefabbricate in cemento armato","√",100,122,null,""]
[null,"A010322","OS14 - Impianti di smaltimento e recupero dei rifiuti","√",100,122,null,""]
[null,"A010323","OS16 - Impianti per centrali di produzione energia elettrica","√",100,122,null,""]
[null,"A010324","OS17 - Linee telefoniche ed impianti di telefonia","√",100,122,null,""]
[null,"A010325","OS18 - Componenti strutturali in acciaio o metallo","√",100,122,null,""]
[null,"A010326","OS19 - Impianti di reti di telecomunicazione e di trasmissione dati","√",100,122,null,""]
[null,"A010327","OS20 - Rilevamenti topografici","√",100,122,null,""]
[null,"A010328","OS21 - Opere strutturali speciali","√",100,122,null,""]
[null,"A010329","OS22 - Impianti di potabilizzazione e depurazione","√",100,122,null,""]
[null,"A010330","OS23 - Demolizione di opere","√",100,122,null,""]
[null,"A010331","OS24 - Verde e arredo urbano","√",100,122,null,""]
[null,"A010332","OS26 - Pavimentazioni e sovrastrutture speciali","√",100,122,null,""]
[null,"A010333","OS28 - Impianti termici e di condizionamento","√",100,122,null,""]
[null,"A010334","OS30 - Impianti interni elettrici, telefonici, radiotelefonici, e televisivi","√",100,122,null,""]
[null,"A010335","OS32 - Strutture in legno","√",100,122,null,""]
[null,"A010336","OS33 - Coperture speciali","√",100,122,null,""]
[null,"A010337","OS34 - Sistemi antirumore per infrastrutture di mobilità","√",100,122,null,""]
[null,"A0104","MEZZI, ATTREZZATURE E SERVIZI SPECIALI AEROPORTUALI",""]
[null,"A010401","Carrelli per bagaglio passeggeri","√",100,{"$f":"E69*1.22","v":122},null,""]
[null,"A010402","De icing","√",100,122,null,""]
[null,"A010403","Depurazione delle acque di scarico dei bottini di bordo","√",100,122,null,""]
[null,"A010404","Misuratori coefficienti d'attrito (grip test)","√",100,122,null,""]
[null,"A010405","Noleggio Gru e autogru","√",100,122,null,""]
[null,"A010406","Noleggio macchine operatrici (es. mezzi sgombraneve, ragno, etc.)","√",100,122,null,""]
[null,"A010407","Servizio di Handling - Assistenza al passeggero","√",100,{"$f":"E75*1.22","v":122},null,""]
[null,"A010408","Spazzatrici","√",100,{"$f":"E76*1.22","v":122},null,""]
[null,"A0105","PULIZIA ED ECOLOGIA",""]
[null,"A010501","Autospurgo e disintasamenti","√",50,{"$f":"E78*1.22","v":61},null,{"$f":"IF(G78<>\"\",E78,\"\")","v":""}]
[null,"A010502","Derattizzazione/sanificazione ambientale",""]
[null,"A01050201","Derattizzazione","√",100,{"$f":"E80*1.22","v":122},null,""]
[null,"A01050202","Sanificazione ambientale","√",100,122,null,""]
[null,"A010503","Detergenti industriali","√",50,61,null,""]
[null,"A010504","Gestione aree verdi",""]
[null,"A01050401","Manutenzione del verde e degli impianti di irrigazione","√",100,{"$f":"E84*1.22","v":122},null,""]
[null,"A01050402","Sfalcio erba in airside","√",100,122,null,""]
[null,"A010505","Gestione rifiuti",""]
[null,"A01050501","Contenitori rifiuti","√",50,{"$f":"E87*1.22","v":61},null,""]
[null,"A01050502","Rifiuti pericolosi - ritiro, trasporto e smaltimento","√",100,122,null,""]
[null,"A01050503","Rifiuti speciali - ritiro, trasporto e smaltimento","√",100,122,null,""]
[null,"A01050504","Rifiuti urbani - ritiro, trasporto e smaltimento","√",100,122,null,""]
[null,"A010506","Servizi di pulizia",""]
[null,"A01050601","Pulizia aree esterne","√",100,{"$f":"E92*1.22","v":122},null,""]
[null,"A01050602","Pulizia aree interne","√",100,122,null,""]
[null,"A010507","Trattamento delle acque","√",50,61,null,""]
[null,"A0106","VIGILANZA",""]
[null,"A010601","Servizi di Portierato e Vigilanza Non Armata","√",100,{"$f":"E96*1.22","v":122},null,""]
[null,"A010602","Servizi di Vigilanza Armata","√",100,122,null,""]
[null,"A02","FORNITURE E PRESTAZIONI VARIE",""]
[null,"A0201","ASSICURAZIONI E BROKERAGGIO",""]
[null,"A020101","Assicurazioni ","√",100,{"$f":"E100*1.22","v":122},null,""]
[null,"A020102","Brokeraggio","√",100,122,null,""]
[null,"A020103","Stime e perizie","√",100,122,null,""]
[null,"A0202","ARREDI E SEGNALETICA",""]
[null,"A020201","Arredi",""]
[null,"A02020101","Arredi aeroportuali","√",100,{"$f":"E105*1.22","v":122},null,""]
[null,"A02020102","Arredi per aree esterne","√",100,122,null,""]
[null,"A02020103","Arredi per aule formazione","√",50,61,null,""]
[null,"A02020104","Arredi per infermerie","√",50,61,null,""]
[null,"A02020105","Arredi per ufficio","√",50,61,null,""]
[null,"A02020106","Sedute aeroportuali","√",50,61,null,""]
[null,"A020202","Manutenzione arredi",""]
[null,"A02020201","Manutenzione restauro mobili e sedute","√",50,{"$f":"E112*1.22","v":61},null,""]
[null,"A02020202","Manutenzione tappezzeria","√",50,61,null,""]
[null,"A020203","Mobili legno, metallici e pareti divisorie e scaffalature","√",50,61,null,""]
[null,"A020204","Porte automatiche","√",100,122,null,""]
[null,"A020205","Porte, casseforti ed armadi blindati","√",50,61,null,""]
[null,"A020206","Segnaletica",""]
[null,"A02020601","Insegne luminose","√",50,{"$f":"E118*1.22","v":61},null,""]
[null,"A02020602","Segnaletica interni","√",100,122,null,""]
[null,"A02020603","Segnaletica orizzontale e verticale","√",50,61,null,""]
[null,"A02020604","Segnaletica stradale","√",50,61,null,""]
[null,"A020207","Teloni in PVC","√",50,61,null,""]
[null,"A020208","Tendaggi",""]
[null,"A02020801","Tende orizzontali/verticali","√",50,{"$f":"E124*1.22","v":61},null,""]
[null,"A02020802","Tende oscuranti","√",50,61,null,""]
[null,"A02020803","Tende veneziane","√",50,61,null,""]
[null,"A0203","ATTREZZATURE",""]
[null,"A020301","Attrezzature aeroportuali","√",100,{"$f":"E128*1.22","v":122},null,""]
[null,"A020302","Attrezzature antincendio","√",50,61,null,""]
[null,"A020303","Attrezzature di manutenzione","√",50,61,null,""]
[null,"A0204","AUTOMEZZI",""]
[null,"A020401","Fornitura Mezzi",""]
[null,"A02040101","Mezzi di traino/sollevamento","√",100,{"$f":"E133*1.22","v":122},null,""]
[null,"A02040102","Mezzi di trasporto","√",50,61,null,""]
[null,"A020402","Fornitura Pneumatici","√",50,61,null,""]
[null,"A020403","Ricambi Auto","√",50,61,null,""]
[null,"A0205","CARBURANTI E LUBRIFICANTI",""]
[null,"A020501","Carburanti per autotrazione","√",50,{"$f":"E138*1.22","v":61},null,""]
[null,"A020502","Gasolio per condizionamento e riscaldamento","√",50,61,null,""]
[null,"A020503","Oli combustibili e lubrificanti","√",50,61,null,""]
[null,"A0206","DOTAZIONI PERSONALI",""]
[null,"A020601","Abbigliamento impiegati di scalo","√",50,{"$f":"E142*1.22","v":61},null,{"$f":"IF(G142<>\"\",E142,\"\")","v":""}]
[null,"A020602","Abbigliamento operai","√",50,61,null,""]
[null,"A0207","ELETTRONICA ED ELETTROTECNICA",""]
[null,"A020701","Accumulatori","√",100,{"$f":"E145*1.22","v":122},null,""]
[null,"A020702","Apparecchiature elettroniche","√",50,61,null,""]
[null,"A020703","Componenti elettronici","√",50,61,null,""]
[null,"A020704","Materiale elettrico","√",50,61,null,""]
[null,"A020705","Parti elettriche","√",50,61,null,""]
[null,"A0208","IMPIANTI AEROPORTUALI: FORNITURA E SERVIZI DI MANUTENZIONE",""]
[null,"A020801","Apparati Bird Strike","√",50,{"$f":"E151*1.22","v":61},null,""]
[null,"A020802","Apparati monitoraggio rumore","√",100,122,null,""]
[null,"A020803","Banchi check-in","√",100,122,null,""]
[null,"A020804","Casse parcheggi","√",100,122,null,""]
[null,"A020805","Guide ottiche","√",50,61,null,""]
[null,"A020806","Impianti di alimentazione aeromobili a 400 Hz","√",100,122,null,""]
[null,"A020807","Impianti e sistemi di gestione parcheggi","√",100,122,null,""]
[null,"A020808","Impianto pre-condizionamento Aeromobili","√",50,61,null,""]
[null,"A020809","Macchine RX controllo bagagli","√",100,122,null,""]
[null,"A020810","Metal detector","√",100,122,null,""]
[null,"A020811","Parcometri","√",50,61,null,""]
[null,"A020812","Pontili d'imbarco","√",100,122,null,""]
[null,"A020813","Rilevatori di esplosivi","√",50,61,null,""]
[null,"A020814","Segnaletica operativa e di indirizzo al passeggero","√",100,122,null,""]
[null,"A020815","Segnali di pista","√",100,122,null,""]
[null,"A020816","Sgrassaggio e sgommaggio piste e piazzali","√",100,122,null,""]
[null,"A020817","Sistema smistamento bagagli","√",100,122,null,""]
[null,"A020818","Sistemi di pesatura","√",100,122,null,""]
[null,"A0209","INFORMATICA",""]
[null,"A020901","Hardware",""]
[null,"A02090101","Accessori HW","√",100,{"$f":"E171*1.22","v":122},null,""]
[null,"A02090102","Apparecchiature HW","√",50,61,null,""]
[null,"A02090103","Fax/Fotocopiatrici",""]
[null,"A0209010301","Fax/Fotocopiatrici - fornitura","√",100,{"$f":"E174*1.22","v":122},null,""]
[null,"A0209010302","Fax/Fotocopiatrici - manutenzione","√",50,61,null,""]
[null,"A0209010303","Fax/Fotocopiatrici - noleggio","√",50,61,null,""]
[null,"A02090104","Stampanti","√",50,61,null,""]
[null,"A020902","Software",""]
[null,"A02090201","Impianti Bagagli - manutenzione","√",100,{"$f":"E179*1.22","v":122},null,""]
[null,"A02090202","Informatica ed elaborazione dati","√",50,61,null,""]
[null,"A02090203","Sistemi operativi","√",50,61,null,""]
[null,"A0210","MARKETING E COMUNICAZIONE",""]
[null,"A021001","Agenzie di comunicazione","√",100,{"$f":"E183*1.22","v":122},null,""]
[null,"A021002","Gadget promozionali","√",50,61,null,""]
[null,"A021003","Manufatti tipografici (es. stampa di bilanci, timetable, carta dei servizi, etc.)","√",100,122,null,""]
[null,"A021004","Materiale e registrazione audio-visivo","√",50,61,null,""]
[null,"A021005","Organizzazione eventi e servizi di hosting","√",50,61,null,""]
[null,"A021006","Organizzazione fieristiche","√",50,61,null,""]
[null,"A021007","Progettazione e realizzazione stand","√",50,61,null,""]
[null,"A021008","Ricerche di mercato","√",50,61,null,""]
[null,"A021009","Serigrafia/Stampe digitali","√",50,61,null,""]
[null,"A021010","Servizi di traduzione","√",50,61,null,""]
[null,"A021011","Servizi pubblicitari marketing e retail","√",100,122,null,""]
[null,"A021012","Servizio di copisteria","√",50,61,null,""]
[null,"A021013","Servizio fotografico","√",50,61,null,""]
[null,"A021014","Stampe pubblicitarie","√",50,61,null,""]
[null,"A021015","Tipografia",""]
[null,"A02101501","Modulistica di tipografia","√",50,{"$f":"E198*1.22","v":61},null,""]
[null,"A02101502","Stampati di tipografia","√",50,61,null,""]
[null,"A021016","Totem ed espositori","√",50,61,null,""]
[null,"A021017","Visual","√",50,61,null,""]
[null,"A0211","MATERIE PRIME E MATERIALI",""]
[null,"A021101","Articoli tecnici","√",50,{"$f":"E203*1.22","v":61},null,""]
[null,"A021102","Ferramenta","√",50,61,null,""]
[null,"A021103","Materiale idraulico","√",50,61,null,""]
[null,"A021104","Materiale termico","√",50,61,null,{"$f":"IF(G206<>\"\",E206,\"\")","v":""}]
[null,"A021105","Materiali isolanti","√",50,61,null,""]
[null,"A021106","Vernici murali/Smalti","√",50,61,null,""]
[null,"A021107","Vetri/Specchi","√",50,61,null,""]
[null,"A0212","MECCANICA ED UTENSILERIA",""]
[null,"A021201","Apparecchiature frigorifere","√",100,{"$f":"E211*1.22","v":122},null,""]
[null,"A021202","Manutenzione componenti meccanici","√",50,61,null,""]
[null,"A021203","Manutenzione macchine complesse (compressori, gruppi elettrogeni, gru, etc.)","√",100,122,null,""]
[null,"A021204","Officine meccaniche","√",50,61,null,""]
[null,"A021205","Parti meccaniche","√",50,61,null,""]
[null,"A021206","Pompe ad immersione o autoadescanti","√",100,122,null,""]
[null,"A021207","Utensileria","√",50,61,null,""]
[null,"A0213","PRODOTTI PER UFFICIO",""]
[null,"A021301","Cancelleria e carta","√",50,{"$f":"E219*1.22","v":61},null,""]
[null,"A021302","Materiali di consumo IT","√",50,61,null,""]
[null,"A021303","Modulistica e stampati personalizzati","√",50,61,null,""]
[null,"A021304","Timbri e targhe","√",50,61,null,""]
[null,"A0214","RISTORAZIONE",""]
[null,"A021401","Distributori automatici","√",50,{"$f":"E224*1.22","v":61},null,""]
[null,"A021402","Servizio di catering","√",50,61,null,""]
[null,"A021403","Ticket Restaurant","√",100,122,null,""]
[null,"A0215","UTILITIES",""]
[null,"A021501","Acqua","√",100,{"$f":"E228*1.22","v":122},null,""]
[null,"A021502","Elettricità","√",100,122,null,""]
[null,"A021503","Gas","√",100,122,null,""]
[null,"A0216","SALUTE",""]
[null,"A021601","Articoli sanitari","√",50,{"$f":"E232*1.22","v":61},null,""]
[null,"A021602","Materiali per infermeria","√",50,61,null,""]
[null,"A0217","SERVIZI VARI E PRESTAZIONI",""]
[null,"A021701","Agenzie interinali","√",100,{"$f":"E235*1.22","v":122},null,""]
[null,"A021702","Agenzie investigative","√",50,61,null,""]
[null,"A021703","Analisi chimiche e batteriologiche","√",50,61,null,""]
[null,"A021704","Contributi associativi","√",50,61,null,""]
[null,"A021705","Formazione e addestramento personale","√",50,61,null,""]
[null,"A021706","Manutenzione sistemi trattamento denaro","√",50,61,null,""]
[null,"A021707","Ricerca e selezione del personale","√",50,61,null,""]
[null,"A021708","Servizi di monitoraggio main line e QSM","√",100,122,null,""]
[null,"A021709","Servizio Taxi","√",100,{"$f":"E243*1.22","v":122},null,""]
[null,"A0218","SICUREZZA",""]
[null,"A021801","Dispositivi Protezione Individuale (D.P.I.)",""]
[null,"A02180101","Abbigliamento","√",50,{"$f":"E246*1.22","v":61},null,""]
[null,"A02180102","Scarpe","√",50,61,null,""]
[null,"A02180103","Accessori","√",50,61,null,""]
[null,"A021802","Fornitura e Manutenzione estintori antincendio","√",100,122,null,""]
[null,"A021803","Fornitura di sistemi antintrusione e videosorveglianza","√",50,61,null,""]
[null,"A021804","Sistemi di rilevazione fumo e impianti Sprinkler","√",100,122,null,""]
[null,"A0219","TELECOMUNICAZIONE",""]
[null,"A021901","Cavi e fibre ottiche","√",50,{"$f":"E253*1.22","v":61},null,""]
[null,"A021902","Connettività telefonica","√",50,61,null,""]
[null,"A021903","Manutenzione delle centrali telefoniche","√",50,61,null,""]
[null,"A021904","Materiale citofonico","√",50,61,null,""]
[null,"A021905","Radio",""]
[null,"A02190501","Strumenti per radioprotezione","√",50,{"$f":"E258*1.22","v":61},null,""]
[null,"A02190502","Materiale radio a frequenza aeronautica","√",50,61,null,""]
[null,"A021906","Servizi di telecomunicazioni varie","√",50,61,null,""]
[null,"A021907","Telecomunicazioni Infrastrutturale","√",50,61,null,""]
[null,"A021908","Telefonia",""]
[null,"A02190801","Telefonia Fissa","√",100,{"$f":"E263*1.22","v":122},null,""]
[null,"A02190802","Telefonia Mobile","√",100,122,null,""]
[null,"A02190803","Materiale telefonico","√",50,61,null,""]
[null,"A0220","VIAGGI, TRASPORTI E SPEDIZIONI",""]
[null,"A022001","Agenzie di viaggio","√",50,{"$f":"E267*1.22","v":61},null,""]
[null,"A022002","Noleggio",""]
[null,"A02200201","Noleggio autovetture",""]
[null,"A0220020101","Noleggio autovetture con conducente","√",50,{"$f":"E270*1.22","v":61},null,{"$f":"IF(G270<>\"\",E270,\"\")","v":""}]
[null,"A0220020102","Noleggio autovetture senza conducente","√",100,122,null,""]
[null,"A02200202","Noleggio bus granturismo","√",50,61,null,""]
[null,"A022003","Servizio Corrieri","√",50,61,null,""]
[null,"A022004","Servizio pony express","√",50,61,null,""]
[null,"A022005","Traslochi","√",50,61,null,""]
[null,"A022006","Trasporto e facchinaggio","√",50,61,null,""]
[null,"A03","INGEGNERI E SOCIETÀ DI INGEGNERIA",""]
[null,"A0301","CONSULENZA TECNICA E MANUTENTIVA","√",50,{"$f":"E278*1.22","v":61},null,""]
[null,"A0302","SERVIZI DI INGEGNERIA",null,100,122,null,{"$f":"IF(G278<>\"\",(IF(G278<>\"\",IF(COUNTIF($G$279:$G$346,\"X\")>1,100/COUNTIF($G$279:$G$346,\"X\")),\"\")),\"\")","v":""}]
[null,"A030201","Progettazione e CSP","",100,122,null,{"$f":"IF(G279<>\"\",(IF(G279<>\"\",IF(COUNTIF($G$279:$G$346,\"X\")>1,100/COUNTIF($G$279:$G$346,\"X\")),\"\")),\"\")","v":""}]
[null,"A03020101","Progettazione e CSP - EDILIZIA","",100,122,null,{"$f":"IF(G280<>\"\",(IF(G280<>\"\",IF(COUNTIF($G$279:$G$346,\"X\")>1,100/COUNTIF($G$279:$G$346,\"X\")),\"\")),\"\")","v":""}]
[null,"A0302010101","Progettazione e CSP - Servizi per la Mobilità","√",100,122,null,""]
[null,"A0302010102","Progettazione e CSP - Edifici e manufatti esistenti","√",100,122,null,""]
[null,"A03020102","Progettazione e CSP - STRUTTURE","",100,122,null,""]
[null,"A0302010201","Progettazione e CSP - Strutture, Opere infrastrutturali puntuali","√",100,122,null,""]
[null,"A0302010202","Progettazione e CSP - Strutture speciali","√",100,122,null,""]
[null,"A03020103","Progettazione e CSP - IMPIANTI","",100,122,null,""]
[null,"A0302010301","Progettazione e CSP - Impianti meccanici a fluido a servizio delle costruzioni","√",100,122,null,""]
[null,"A0302010302","Progettazione e CSP - Impianti elettrici e speciali a servizio delle costruzioni","√",100,122,null,""]
[null,"A0302010303","Progettazione e CSP - Opere elettriche per reti di trasmissione e distribuzione energia e segnali ","√",100,122,null,""]
[null,"A0302010304","Progettazione e CSP - Impianti Avl","√",100,122,null,""]
[null,"A03020104","Progettazione e CSP - INFRASTRUTTURE PER LA MOBILITA’","",100,122,null,""]
[null,"A0302010401","Progettazione e CSP - Manutenzione","√",100,122,null,""]
[null,"A0302010402","Progettazione e CSP - Viabilità ordinaria","√",100,122,null,""]
[null,"A0302010403","Progettazione e CSP - Viabilità speciale","√",100,122,null,""]
[null,"A03020105","Progettazione e CSP - IDRAULICA","",100,122,null,""]
[null,"A0302010501","Progettazione e CSP - Acquedotti e fognature","√",100,122,null,""]
[null,"A03020106","Progettazione e CSP - TECNOLOGIE DELLA INFORMAZIONE E DELLA COMUNICAZIONE","",100,122,null,""]
[null,"A0302010601","Progettazione e CSP - Sistemi e reti di telecomunicazione","√",100,122,null,""]
[null,"A0302010602","Progettazione e CSP - Sistemi elettronici ed automazione","√",100,122,null,""]
[null,"A03020107","Progettazione e CSP - PAESAGGIO E AMBIENTE","",100,122,null,""]
[null,"A0302010701","Progettazione e CSP - Interventi del verde ","√",100,122,null,""]
[null,"A03020108","Progettazione e CSP - TERRITORIO E URBANISTICA","",100,122,null,""]
[null,"A0302010801","Progettazione e CSP - Pianificazione","√",100,122,null,""]
[null,"A030202","Coordinamento della sicurezza (CS)","",100,122,null,""]
[null,"A03020201","COORDINAMENTO DELLA SICUREZZA IN FASE DI ESECUZIONE (CSE)","√",100,122,null,""]
[null,"A030203","Direzione Lavori (DL)","",100,122,null,""]
[null,"A03020301","DL - EDILIZIA","",100,122,null,""]
[null,"A0302030101","DL - Servizi per la Mobilità","√",100,122,null,""]
[null,"A0302030102","DL - Edifici e manufatti esistenti","√",100,122,null,""]
[null,"A03020302","DL - STRUTTURE","",100,122,null,""]
[null,"A0302030201","DL - Strutture, Opere infrastrutturali puntuali","√",100,122,null,""]
[null,"A0302030202","DL - Strutture speciali","√",100,122,null,""]
[null,"A03020303","DL - IMPIANTI","",100,122,null,""]
[null,"A0302030301","DL - Impianti meccanici a fluido a servizio delle costruzioni","√",100,122,null,""]
[null,"A0302030302","DL - Impianti elettrici e speciali a servizio delle costruzioni","√",100,122,null,""]
[null,"A0302030303","DL - Opere elettriche per reti di trasmissione e distribuzione energia e segnali ","√",100,122,null,""]
[null,"A0302030304","DL - Impianti Avl","√",100,122,null,""]
[null,"A03020304","DL - INFRASTRUTTURE PER LA MOBILITA’","",100,122,null,""]
[null,"A0302030401","DL - Manutenzione","√",100,122,null,""]
[null,"A0302030402","DL - Viabilità ordinaria","√",100,122,null,""]
[null,"A0302030403","DL - Viabilità speciale","√",100,122,null,""]
[null,"A03020305","DL - IDRAULICA","",100,122,null,""]
[null,"A0302030501","DL - Acquedotti e fognature","√",100,122,null,""]
[null,"A03020306","DL - TECNOLOGIE DELLA INFORMAZIONE E DELLA COMUNICAZIONE","",100,122,null,""]
[null,"A0302030601","DL - Sistemi e reti di telecomunicazione","√",100,122,null,""]
[null,"A0302030602","DL - Sistemi elettronici ed automazione","√",100,122,null,""]
[null,"A03020307","DL - PAESAGGIO E AMBIENTE","",100,122,null,""]
[null,"A0302030701","DL - Interventi del verde ","√",100,122,null,""]
[null,"A03020308","DL - TERRITORIO E URBANISTICA","",100,122,null,""]
[null,"A0302030801","DL - Pianificazione","√",100,122,null,""]
[null,"A030204","Collaudo (COL)","",100,122,null,""]
[null,"A03020401","COL - COLLAUDO STATICO","√",100,122,null,""]
[null,"A030205","Attività propedeutiche/complementari a progettazione ed esecuzione lavori","",100,122,null,""]
[null,"A03020501","RILIEVI CELERIMETRICI","√",100,122,null,""]
[null,"A03020502","SURVEY IMPIANTISTICHE","√",100,122,null,""]
[null,"A03020503","GEOLOGIA","√",100,122,null,""]
[null,"A03020504","PRATICHE AUTORIZZATIVE","√",100,122,null,""]
[null,"A03020505","PRATICHE VVF","√",100,122,null,""]
[null,"A03020506","PRATICHE CATASTALI","√",100,122,null,""]
[null,"A03020507","CONSULENZE TECNICHE SPECIALISTICHE","√",100,122,null,""]
[null,"A03020508","VERIFICA E VALIDAZIONE PROGETTI","√",100,{"$f":"E342*1.22","v":122},null,""]
[null,"A03020509","DIREZIONI DI ESERCIZIO IMPIANTI","√",100,122,null,""]
[null,"A03020510","PROVE E INDAGINI","√",100,122,null,""]
[null,"A03020511","STUDI SPECIALISTICI AERONAUTICI","√",100,122,null,{"$f":"IF(G344<>\"\",(IF(G344<>\"\",IF(COUNTIF($G$279:$G$346,\"X\")>1,100/COUNTIF($G$279:$G$346,\"X\")),\"\")),\"\")","v":""}]
[null,"A030206","Addestramento e formazione tecnica","√",100,122,null,""]
[null,"A04","PRESTAZIONI CONSULENZIALI",""]
[null,"A0401","Consulenza del lavoro","√",100,{"$f":"E348*1.22","v":122},null,{"$f":"IF(G348<>\"\",E348,\"\")","v":""}]
[null,"A0402","Consulenza finanziaria e amministrativa","√",50,61,null,""]
[null,"A0403","Consulenza in materia di sicurezza ambientale","√",100,122,null,""]
[null,"A0404","Consulenza legale",""]
[null,"A040401","Consulenza legale diritto amministrativo / Codice degli appalti","√",100,122,null,""]
[null,"A040402","Consulenza legale diritto civile / procedura civile","√",100,122,null,""]
[null,"A040403","Consulenza legale diritto penale / procedura penale","√",100,122,null,""]
[null,"A0405","Consulenza informatica","√",100,122,null,""]
[null,"A0406","Consulenza assicurativa","√",100,122,null,""]
[null,"A0407","Consulenza audit","√",100,122,null,""]
[null,"A0408","Prestazioni",""]
[null,"A040801","Prestazioni mediche/Infermieristiche","√",50,{"$f":"E359*1.22","v":61},null,""]
[null,"A040802","Prestazioni sanitarie per personale dipendente","√",50,61,null,""]
[null,"A040803","Prestazioni professionali","√",50,61,null,""]
[null,"B","SISTEMI DI QUALIFICAZIONE",""]
[null,"B01","SISTEMA DI QUALIFICAZIONE LAVORI IN APT ",""]
[null,"B0101","Lavori relativi al Terminal Aeroportuale",""]
[null,"B010101","Lavori relativi al Terminal Aeroportuale che comportano interferenza con l’attività in area air side",""]
[null,"B01010101","Categoria OG1",""]
[null,"B0101010101","OG1_Classe I","√"]
[null,"B0101010102","OG1_Classe II","√"]
[null,"B0101010103","OG1_Classe III","√"]
[null,"B0101010104","OG1_Classe III bis","√"]
[null,"B0101010105","OG1_Classe IV","√"]
[null,"B0101010106","OG1_Classe IV bis","√"]
[null,"B0101010107","OG1_Classe V","√"]
[null,"B01010102","Categoria OG10",""]
[null,"B0101010201","OG10_Classe I","√"]
[null,"B0101010202","OG10_Classe II","√"]
[null,"B0101010203","OG10_Classe III","√"]
[null,"B0101010204","OG10_Classe III bis","√"]
[null,"B0101010205","OG10_Classe IV","√"]
[null,"B0101010206","OG10_Classe IV bis","√"]
[null,"B0101010207","OG10_Classe V","√"]
[null,"B01010103","Categoria OG11",""]
[null,"B0101010301","OG11_Classe I","√"]
[null,"B0101010302","OG11_Classe II","√"]
[null,"B0101010303","OG11_Classe III","√"]
[null,"B0101010304","OG11_Classe III bis","√"]
[null,"B0101010305","OG11_Classe IV","√"]
[null,"B0101010306","OG11_Classe IV bis","√"]
[null,"B0101010307","OG11_Classe V","√"]
[null,"B01010104","Categoria OS3",""]
[null,"B0101010401","OS3_Classe I","√"]
[null,"B0101010402","OS3_Classe II","√"]
[null,"B0101010403","OS3_Classe III","√"]
[null,"B0101010404","OS3_Classe III bis","√"]
[null,"B0101010405","OS3_Classe IV","√"]
[null,"B0101010406","OS3_Classe IV bis","√"]
[null,"B0101010407","OS3_Classe V","√"]
[null,"B01010105","Categoria OS4",""]
[null,"B0101010501","OS4_Classe I","√"]
[null,"B0101010502","OS4_Classe II","√"]
[null,"B0101010503","OS4_Classe III","√"]
[null,"B0101010504","OS4_Classe III bis","√"]
[null,"B0101010505","OS4_Classe IV","√"]
[null,"B0101010506","OS4_Classe IV bis","√"]
[null,"B0101010507","OS4_Classe V","√"]
[null,"B01010106","Categoria OS6",""]
[null,"B0101010601","OS6_Classe I","√"]
[null,"B0101010602","OS6_Classe II","√"]
[null,"B0101010603","OS6_Classe III","√"]
[null,"B0101010604","OS6_Classe III bis","√"]
[null,"B0101010605","OS6_Classe IV","√"]
[null,"B0101010606","OS6_Classe IV bis","√"]
[null,"B0101010607","OS6_Classe V","√"]
[null,"B01010107","Categoria OS18A",""]
[null,"B0101010701","OS18A_Classe I","√"]
[null,"B0101010702","OS18A_Classe II","√"]
[null,"B0101010703","OS18A_Classe III","√"]
[null,"B0101010704","OS18A_Classe III bis","√"]
[null,"B0101010705","OS18A_Classe IV","√"]
[null,"B0101010706","OS18A_Classe IV bis","√"]
[null,"B0101010707","OS18A_Classe V","√"]
[null,"B01010108","Categoria OS19",""]
[null,"B0101010801","OS19_Classe I","√"]
[null,"B0101010802","OS19_Classe II","√"]
[null,"B0101010803","OS19_Classe III","√"]
[null,"B0101010804","OS19_Classe III bis","√"]
[null,"B0101010805","OS19_Classe IV","√"]
[null,"B0101010806","OS19_Classe IV bis","√"]
[null,"B0101010807","OS19_Classe V","√"]
[null,"B01010109","Categoria OS21",""]
[null,"B0101010901","OS21_Classe I","√"]
[null,"B0101010902","OS21_Classe II","√"]
[null,"B0101010903","OS21_Classe III","√"]
[null,"B0101010904","OS21_Classe III bis","√"]
[null,"B0101010905","OS21_Classe IV","√"]
[null,"B0101010906","OS21_Classe IV bis","√"]
[null,"B0101010907","OS21_Classe V","√"]
[null,"B01010110","Categoria OS28",""]
[null,"B0101011001","OS28_Classe I","√"]
[null,"B0101011002","OS28_Classe II","√"]
[null,"B0101011003","OS28_Classe III","√"]
[null,"B0101011004","OS28_Classe III bis","√"]
[null,"B0101011005","OS28_Classe IV","√"]
[null,"B0101011006","OS28_Classe IV bis","√"]
[null,"B0101011007","OS28_Classe V","√"]
[null,"B01010111","Categoria OS30",""]
[null,"B0101011101","OS30_Classe I","√"]
[null,"B0101011102","OS30_Classe II","√"]
[null,"B0101011103","OS30_Classe III","√"]
[null,"B0101011104","OS30_Classe III bis","√"]
[null,"B0101011105","OS30_Classe IV","√"]
[null,"B0101011106","OS30_Classe IV bis","√"]
[null,"B0101011107","OS30_Classe V","√"]
[null,"B010102","Lavori relativi al Terminal Aeroportuale che non comportano interferenza con l’attività in area air side",""]
[null,"B01010201","Categoria OG1",""]
[null,"B0101020101","OG1_Classe I","√"]
[null,"B0101020102","OG1_Classe II","√"]
[null,"B0101020103","OG1_Classe III","√"]
[null,"B0101020104","OG1_Classe III bis","√"]
[null,"B0101020105","OG1_Classe IV","√"]
[null,"B0101020106","OG1_Classe IV bis","√"]
[null,"B0101020107","OG1_Classe V","√"]
[null,"B01010202","Categoria OG10",""]
[null,"B0101020201","OG10_Classe I","√"]
[null,"B0101020202","OG10_Classe II","√"]
[null,"B0101020203","OG10_Classe III","√"]
[null,"B0101020204","OG10_Classe III bis","√"]
[null,"B0101020205","OG10_Classe IV","√"]
[null,"B0101020206","OG10_Classe IV bis","√"]
[null,"B0101020207","OG10_Classe V","√"]
[null,"B01010203","Categoria OG11",""]
[null,"B0101020301","OG11_Classe I","√"]
[null,"B0101020302","OG11_Classe II","√"]
[null,"B0101020303","OG11_Classe III","√"]
[null,"B0101020304","OG11_Classe III bis","√"]
[null,"B0101020305","OG11_Classe IV","√"]
[null,"B0101020306","OG11_Classe IV bis","√"]
[null,"B0101020307","OG11_Classe V","√"]
[null,"B01010204","Categoria OS3",""]
[null,"B0101020401","OS3_Classe I","√"]
[null,"B0101020402","OS3_Classe II","√"]
[null,"B0101020403","OS3_Classe III","√"]
[null,"B0101020404","OS3_Classe III bis","√"]
[null,"B0101020405","OS3_Classe IV","√"]
[null,"B0101020406","OS3_Classe IV bis","√"]
[null,"B0101020407","OS3_Classe V","√"]
[null,"B01010205","Categoria OS4",""]
[null,"B0101020501","OS4_Classe I","√"]
[null,"B0101020502","OS4_Classe II","√"]
[null,"B0101020503","OS4_Classe III","√"]
[null,"B0101020504","OS4_Classe III bis","√"]
[null,"B0101020505","OS4_Classe IV","√"]
[null,"B0101020506","OS4_Classe IV bis","√"]
[null,"B0101020507","OS4_Classe V","√"]
[null,"B01010206","Categoria OS6",""]
[null,"B0101020601","OS6_Classe I","√"]
[null,"B0101020602","OS6_Classe II","√"]
[null,"B0101020603","OS6_Classe III","√"]
[null,"B0101020604","OS6_Classe III bis","√"]
[null,"B0101020605","OS6_Classe IV","√"]
[null,"B0101020606","OS6_Classe IV bis","√"]
[null,"B0101020607","OS6_Classe V","√"]
[null,"B01010207","Categoria OS18A",""]
[null,"B0101020701","OS18A_Classe I","√"]
[null,"B0101020702","OS18A_Classe II","√"]
[null,"B0101020703","OS18A_Classe III","√"]
[null,"B0101020704","OS18A_Classe III bis","√"]
[null,"B0101020705","OS18A_Classe IV","√"]
[null,"B0101020706","OS18A_Classe IV bis","√"]
[null,"B0101020707","OS18A_Classe V","√"]
[null,"B01010208","Categoria OS19",""]
[null,"B0101020801","OS19_Classe I","√"]
[null,"B0101020802","OS19_Classe II","√"]
[null,"B0101020803","OS19_Classe III","√"]
[null,"B0101020804","OS19_Classe III bis","√"]
[null,"B0101020805","OS19_Classe IV","√"]
[null,"B0101020806","OS19_Classe IV bis","√"]
[null,"B0101020807","OS19_Classe V","√"]
[null,"B01010209","Categoria OS21",""]
[null,"B0101020901","OS21_Classe I","√"]
[null,"B0101020902","OS21_Classe II","√"]
[null,"B0101020903","OS21_Classe III","√"]
[null,"B0101020904","OS21_Classe III bis","√"]
[null,"B0101020905","OS21_Classe IV","√"]
[null,"B0101020906","OS21_Classe IV bis","√"]
[null,"B0101020907","OS21_Classe V","√"]
[null,"B01010210","Categoria OS28",""]
[null,"B0101021001","OS28_Classe I","√"]
[null,"B0101021002","OS28_Classe II","√"]
[null,"B0101021003","OS28_Classe III","√"]
[null,"B0101021004","OS28_Classe III bis","√"]
[null,"B0101021005","OS28_Classe IV","√"]
[null,"B0101021006","OS28_Classe IV bis","√"]
[null,"B0101021007","OS28_Classe V","√"]
[null,"B01010211","Categoria OS30",""]
[null,"B0101021101","OS30_Classe I","√"]
[null,"B0101021102","OS30_Classe II","√"]
[null,"B0101021103","OS30_Classe III","√"]
[null,"B0101021104","OS30_Classe III bis","√"]
[null,"B0101021105","OS30_Classe IV","√"]
[null,"B0101021106","OS30_Classe IV bis","√"]
[null,"B0101021107","OS30_Classe V","√"]
[null,"B0102","Lavori relativi ad immobili in area land side diversi dal Terminal Passeggeri/ Merci ed opere minori",""]
[null,"B010201","Categoria OG1",""]
[null,"B01020101","OG1_Classe I","√"]
[null,"B01020102","OG1_Classe II","√"]
[null,"B01020103","OG1_Classe III","√"]
[null,"B01020104","OG1_Classe III bis","√"]
[null,"B01020105","OG1_Classe IV","√"]
[null,"B01020106","OG1_Classe IV bis","√"]
[null,"B01020107","OG1_Classe V","√"]
[null,"B010202","Categoria OG10",""]
[null,"B01020201","OG10_Classe I","√"]
[null,"B01020202","OG10_Classe II","√"]
[null,"B01020203","OG10_Classe III","√"]
[null,"B01020204","OG10_Classe III bis","√"]
[null,"B01020205","OG10_Classe IV","√"]
[null,"B01020206","OG10_Classe IV bis","√"]
[null,"B01020207","OG10_Classe V","√"]
[null,"B010203","Categoria OG11",""]
[null,"B01020301","OG11_Classe I","√"]
[null,"B01020302","OG11_Classe II","√"]
[null,"B01020303","OG11_Classe III","√"]
[null,"B01020304","OG11_Classe III bis","√"]
[null,"B01020305","OG11_Classe IV","√"]
[null,"B01020306","OG11_Classe IV bis","√"]
[null,"B01020307","OG11_Classe V","√"]
[null,"B010204","Categoria OS3",""]
[null,"B01020401","OS3_Classe I","√"]
[null,"B01020402","OS3_Classe II","√"]
[null,"B01020403","OS3_Classe III","√"]
[null,"B01020404","OS3_Classe III bis","√"]
[null,"B01020405","OS3_Classe IV","√"]
[null,"B01020406","OS3_Classe IV bis","√"]
[null,"B01020407","OS3_Classe V","√"]
[null,"B010205","Categoria OS4",""]
[null,"B01020501","OS4_Classe I","√"]
[null,"B01020502","OS4_Classe II","√"]
[null,"B01020503","OS4_Classe III","√"]
[null,"B01020504","OS4_Classe III bis","√"]
[null,"B01020505","OS4_Classe IV","√"]
[null,"B01020506","OS4_Classe IV bis","√"]
[null,"B01020507","OS4_Classe V","√"]
[null,"B010206","Categoria OS6",""]
[null,"B01020601","OS6_Classe I","√"]
[null,"B01020602","OS6_Classe II","√"]
[null,"B01020603","OS6_Classe III","√"]
[null,"B01020604","OS6_Classe III bis","√"]
[null,"B01020605","OS6_Classe IV","√"]
[null,"B01020606","OS6_Classe IV bis","√"]
[null,"B01020607","OS6_Classe V","√"]
[null,"B010207","Categoria OS18A",""]
[null,"B01020701","OS18A_Classe I","√"]
[null,"B01020702","OS18A_Classe II","√"]
[null,"B01020703","OS18A_Classe III","√"]
[null,"B01020704","OS18A_Classe III bis","√"]
[null,"B01020705","OS18A_Classe IV","√"]
[null,"B01020706","OS18A_Classe IV bis","√"]
[null,"B01020707","OS18A_Classe V","√"]
[null,"B010208","Categoria OS19",""]
[null,"B01020801","OS19_Classe I","√"]
[null,"B01020802","OS19_Classe II","√"]
[null,"B01020803","OS19_Classe III","√"]
[null,"B01020804","OS19_Classe III bis","√"]
[null,"B01020805","OS19_Classe IV","√"]
[null,"B01020806","OS19_Classe IV bis","√"]
[null,"B01020807","OS19_Classe V","√"]
[null,"B010209","Categoria OS28",""]
[null,"B01020901","OS28_Classe I","√"]
[null,"B01020902","OS28_Classe II","√"]
[null,"B01020903","OS28_Classe III","√"]
[null,"B01020904","OS28_Classe III bis","√"]
[null,"B01020905","OS28_Classe IV","√"]
[null,"B01020906","OS28_Classe IV bis","√"]
[null,"B01020907","OS28_Classe V","√"]
[null,"B010210","Categoria OS30",""]
[null,"B01021001","OS30_Classe I","√"]
[null,"B01021002","OS30_Classe II","√"]
[null,"B01021003","OS30_Classe III","√"]
[null,"B01021004","OS30_Classe III bis","√"]
[null,"B01021005","OS30_Classe IV","√"]
[null,"B01021006","OS30_Classe IV bis","√"]
[null,"B01021007","OS30_Classe V","√"]
[null,"B0103","Lavori relativi alla viabilità, ai parcheggi ed alla rete di drenaggio in area landside",""]
[null,"B010301","Categoria OG3",""]
[null,"B01030101","OG3_Classe I","√"]
[null,"B01030102","OG3_Classe II","√"]
[null,"B01030103","OG3_Classe III","√"]
[null,"B01030104","OG3_Classe III bis","√"]
[null,"B01030105","OG3_Classe IV","√"]
[null,"B01030106","OG3_Classe IV bis","√"]
[null,"B01030107","OG3_Classe V","√"]
[null,"B010302","Categoria OG10",""]
[null,"B01030201","OG10_Classe I","√"]
[null,"B01030202","OG10_Classe II","√"]
[null,"B01030203","OG10_Classe III","√"]
[null,"B01030204","OG10_Classe III bis","√"]
[null,"B01030205","OG10_Classe IV","√"]
[null,"B01030206","OG10_Classe IV bis","√"]
[null,"B01030207","OG10_Classe V","√"]
[null,"B010303","Categoria OS9",""]
[null,"B01030301","OS9_Classe I","√"]
[null,"B01030302","OS9_Classe II","√"]
[null,"B01030303","OS9_Classe III","√"]
[null,"B01030304","OS9_Classe III bis","√"]
[null,"B01030305","OS9_Classe IV","√"]
[null,"B01030306","OS9_Classe IV bis","√"]
[null,"B01030307","OS9_Classe V","√"]
[null,"B010304","Categoria OS10",""]
[null,"B01030401","OS10_Classe I","√"]
[null,"B01030402","OS10_Classe II","√"]
[null,"B01030403","OS10_Classe III","√"]
[null,"B01030404","OS10_Classe III bis","√"]
[null,"B01030405","OS10_Classe IV","√"]
[null,"B01030406","OS10_Classe IV bis","√"]
[null,"B01030407","OS10_Classe V","√"]
[null,"B010305","Categoria OS18A",""]
[null,"B01030501","OS18A_Classe I","√"]
[null,"B01030502","OS18A_Classe II","√"]
[null,"B01030503","OS18A_Classe III","√"]
[null,"B01030504","OS18A_Classe III bis","√"]
[null,"B01030505","OS18A_Classe IV","√"]
[null,"B01030506","OS18A_Classe IV bis","√"]
[null,"B01030507","OS18A_Classe V","√"]
[null,"B010306","Categoria OS26",""]
[null,"B01030601","OS26_Classe I","√"]
[null,"B01030602","OS26_Classe II","√"]
[null,"B01030603","OS26_Classe III","√"]
[null,"B01030604","OS26_Classe III bis","√"]
[null,"B01030605","OS26_Classe IV","√"]
[null,"B01030606","OS26_Classe IV bis","√"]
[null,"B01030607","OS26_Classe V","√"]
[null,"B0104","Lavori relativi ad immobili in area airside ed opere minori diversi dal Terminal Passeggeri/Merci",""]
[null,"B010401","Categoria OG1",""]
[null,"B01040101","OG1_Classe I","√"]
[null,"B01040102","OG1_Classe II","√"]
[null,"B01040103","OG1_Classe III","√"]
[null,"B01040104","OG1_Classe III bis","√"]
[null,"B01040105","OG1_Classe IV","√"]
[null,"B01040106","OG1_Classe IV bis","√"]
[null,"B01040107","OG1_Classe V","√"]
[null,"B010402","Categoria OG10",""]
[null,"B01040201","OG10_Classe I","√"]
[null,"B01040202","OG10_Classe II","√"]
[null,"B01040203","OG10_Classe III","√"]
[null,"B01040204","OG10_Classe III bis","√"]
[null,"B01040205","OG10_Classe IV","√"]
[null,"B01040206","OG10_Classe IV bis","√"]
[null,"B01040207","OG10_Classe V","√"]
[null,"B010403","Categoria OG11",""]
[null,"B01040301","OG11_Classe I","√"]
[null,"B01040302","OG11_Classe II","√"]
[null,"B01040303","OG11_Classe III","√"]
[null,"B01040304","OG11_Classe III bis","√"]
[null,"B01040305","OG11_Classe IV","√"]
[null,"B01040306","OG11_Classe IV bis","√"]
[null,"B01040307","OG11_Classe V","√"]
[null,"B010404","Categoria OS3",""]
[null,"B01040401","OS3_Classe I","√"]
[null,"B01040402","OS3_Classe II","√"]
[null,"B01040403","OS3_Classe III","√"]
[null,"B01040404","OS3_Classe III bis","√"]
[null,"B01040405","OS3_Classe IV","√"]
[null,"B01040406","OS3_Classe IV bis","√"]
[null,"B01040407","OS3_Classe V","√"]
[null,"B010405","Categoria OS4",""]
[null,"B01040501","OS4_Classe I","√"]
[null,"B01040502","OS4_Classe II","√"]
[null,"B01040503","OS4_Classe III","√"]
[null,"B01040504","OS4_Classe III bis","√"]
[null,"B01040505","OS4_Classe IV","√"]
[null,"B01040506","OS4_Classe IV bis","√"]
[null,"B01040507","OS4_Classe V","√"]
[null,"B010406","Categoria OS6",""]
[null,"B01040601","OS6_Classe I","√"]
[null,"B01040602","OS6_Classe II","√"]
[null,"B01040603","OS6_Classe III","√"]
[null,"B01040604","OS6_Classe III bis","√"]
[null,"B01040605","OS6_Classe IV","√"]
[null,"B01040606","OS6_Classe IV bis","√"]
[null,"B01040607","OS6_Classe V","√"]
[null,"B010407","Categoria OS18A",""]
[null,"B01040701","OS18A_Classe I","√"]
[null,"B01040702","OS18A_Classe II","√"]
[null,"B01040703","OS18A_Classe III","√"]
[null,"B01040704","OS18A_Classe III bis","√"]
[null,"B01040705","OS18A_Classe IV","√"]
[null,"B01040706","OS18A_Classe IV bis","√"]
[null,"B01040707","OS18A_Classe V","√"]
[null,"B010408","Categoria OS19",""]
[null,"B01040801","OS19_Classe I","√"]
[null,"B01040802","OS19_Classe II","√"]
[null,"B01040803","OS19_Classe III","√"]
[null,"B01040804","OS19_Classe III bis","√"]
[null,"B01040805","OS19_Classe IV","√"]
[null,"B01040806","OS19_Classe IV bis","√"]
[null,"B01040807","OS19_Classe V","√"]
[null,"B010409","Categoria OS28",""]
[null,"B01040901","OS28_Classe I","√"]
[null,"B01040902","OS28_Classe II","√"]
[null,"B01040903","OS28_Classe III","√"]
[null,"B01040904","OS28_Classe III bis","√"]
[null,"B01040905","OS28_Classe IV","√"]
[null,"B01040906","OS28_Classe IV bis","√"]
[null,"B01040907","OS28_Classe V","√"]
[null,"B010410","Categoria OS30",""]
[null,"B01041001","OS30_Classe I","√"]
[null,"B01041002","OS30_Classe II","√"]
[null,"B01041003","OS30_Classe III","√"]
[null,"B01041004","OS30_Classe III bis","√"]
[null,"B01041005","OS30_Classe IV","√"]
[null,"B01041006","OS30_Classe IV bis","√"]
[null,"B01041007","OS30_Classe V","√"]
[null,"B0105","Lavori relativi alla pista, vie di  rullaggio, raccordi, piazzali di sosta aeromobili, reti di drenaggio ed impianti Avl",""]
[null,"B010501","Categoria OG3",""]
[null,"B01050101","OG3_Classe I","√"]
[null,"B01050102","OG3_Classe II","√"]
[null,"B01050103","OG3_Classe III","√"]
[null,"B01050104","OG3_Classe III bis","√"]
[null,"B01050105","OG3_Classe IV","√"]
[null,"B01050106","OG3_Classe IV bis","√"]
[null,"B01050107","OG3_Classe V","√"]
[null,"B010502","Categoria OG6",""]
[null,"B01050201","OG6_Classe I","√"]
[null,"B01050202","OG6_Classe II","√"]
[null,"B01050203","OG6_Classe III","√"]
[null,"B01050204","OG6_Classe III bis","√"]
[null,"B01050205","OG6_Classe IV","√"]
[null,"B01050206","OG6_Classe IV bis","√"]
[null,"B01050207","OG6_Classe V","√"]
[null,"B010503","Categoria OG10",""]
[null,"B01050301","OG10_Classe I","√"]
[null,"B01050302","OG10_Classe II","√"]
[null,"B01050303","OG10_Classe III","√"]
[null,"B01050304","OG10_Classe III bis","√"]
[null,"B01050305","OG10_Classe IV","√"]
[null,"B01050306","OG10_Classe IV bis","√"]
[null,"B01050307","OG10_Classe V","√"]
[null,"B010504","Categoria OS9",""]
[null,"B01050401","OS9_Classe I","√"]
[null,"B01050402","OS9_Classe II","√"]
[null,"B01050403","OS9_Classe III","√"]
[null,"B01050404","OS9_Classe III bis","√"]
[null,"B01050405","OS9_Classe IV","√"]
[null,"B01050406","OS9_Classe IV bis","√"]
[null,"B01050407","OS9_Classe V","√"]
[null,"B010505","Categoria OS10",""]
[null,"B01050501","OS10_Classe I","√"]
[null,"B01050502","OS10_Classe II","√"]
[null,"B01050503","OS10_Classe III","√"]
[null,"B01050504","OS10_Classe III bis","√"]
[null,"B01050505","OS10_Classe IV","√"]
[null,"B01050506","OS10_Classe IV bis","√"]
[null,"B01050507","OS10_Classe V","√"]
[null,"B010506","Categoria OS26",""]
[null,"B01050601","OS26_Classe I","√"]
[null,"B01050602","OS26_Classe II","√"]
[null,"B01050603","OS26_Classe III","√"]
[null,"B01050604","OS26_Classe III bis","√"]
[null,"B01050605","OS26_Classe IV","√"]
[null,"B01050606","OS26_Classe IV bis","√"]
[null,"B01050607","OS26_Classe V","√"]
[null,"B02","SERVIZI DI INGEGNERIA",""]
[null,"B0201","SERVIZI DI INGEGNERIA PER GARE IMPORTO > 20K€",""]
[null,"B020101","Progettazione e CSP",""]
[null,"B02010101","Progettazione e CSP - EDILIZIA",""]
[null,"B0201010101","Progettazione e CSP - Servizi per la Mobilità","√"]
[null,"B0201010102","Progettazione e CSP - Edifici e manufatti esistenti","√"]
[null,"B02010102","Progettazione e CSP - STRUTTURE",""]
[null,"B0201010201","Progettazione e CSP - Strutture, Opere infrastrutturali puntuali","√"]
[null,"B0201010202","Progettazione e CSP - Strutture speciali","√"]
[null,"B02010103","Progettazione e CSP - IMPIANTI",""]
[null,"B0201010301","Progettazione e CSP - Impianti meccanici a fluido a servizio delle costruzioni","√"]
[null,"B0201010302","Progettazione e CSP - Impianti elettrici e speciali a servizio delle costruzioni","√"]
[null,"B0201010303","Progettazione e CSP - Opere elettriche per reti di trasmissione e distribuzione energia e segnali ","√"]
[null,"B0201010304","Progettazione e CSP - Impianti Avl","√"]
[null,"B02010104","Progettazione e CSP - INFRASTRUTTURE PER LA MOBILITA’",""]
[null,"B0201010401","Progettazione e CSP - Manutenzione","√"]
[null,"B0201010402","Progettazione e CSP - Viabilità ordinaria","√"]
[null,"B0201010403","Progettazione e CSP - Viabilità speciale","√"]
[null,"B02010105","Progettazione e CSP - IDRAULICA",""]
[null,"B0201010501","Progettazione e CSP - Acquedotti e fognature","√"]
[null,"B02010106","Progettazione e CSP - TECNOLOGIE DELLA INFORMAZIONE E DELLA COMUNICAZIONE",""]
[null,"B0201010601","Progettazione e CSP - Sistemi e reti di telecomunicazione","√"]
[null,"B0201010602","Progettazione e CSP - Sistemi elettronici ed automazione","√"]
[null,"B02010107","Progettazione e CSP - PAESAGGIO E AMBIENTE",""]
[null,"B0201010701","Progettazione e CSP - Interventi del verde ","√"]
[null,"B02010108","Progettazione e CSP - TERRITORIO E URBANISTICA",""]
[null,"B0201010801","Progettazione e CSP - Pianificazione","√"]
[null,"B020102","Coordinamento della sicurezza (CS)",""]
[null,"B02010201","CSE - COORDINAMENTO DELLA SICUREZZA IN FASE DI ESECUZIONE","√"]
[null,"B020103","Direzione Lavori (DL)",""]
[null,"B02010301","DL - EDILIZIA",""]
[null,"B0201030101","DL - Servizi per la Mobilità","√"]
[null,"B0201030102","DL - Edifici e manufatti esistenti","√"]
[null,"B02010302","DL - STRUTTURE",""]
[null,"B0201030201","DL - Strutture, Opere infrastrutturali puntuali","√"]
[null,"B0201030202","DL - Strutture speciali","√"]
[null,"B02010303","DL - IMPIANTI",""]
[null,"B0201030301","DL - Impianti meccanici a fluido a servizio delle costruzioni","√"]
[null,"B0201030302","DL - Impianti elettrici e speciali a servizio delle costruzioni","√"]
[null,"B0201030303","DL - Opere elettriche per reti di trasmissione e distribuzione energia e segnali ","√"]
[null,"B0201030304","DL - Impianti Avl","√"]
[null,"B02010304","DL - INFRASTRUTTURE PER LA MOBILITA’",""]
[null,"B0201030401","DL - Manutenzione","√"]
[null,"B0201030402","DL - Viabilità ordinaria","√"]
[null,"B0201030403","DL - Viabilità speciale","√"]
[null,"B02010305","DL - IDRAULICA",""]
[null,"B0201030501","DL - Acquedotti e fognature","√"]
[null,"B02010306","DL - TECNOLOGIE DELLA INFORMAZIONE E DELLA COMUNICAZIONE",""]
[null,"B0201030601","DL - Sistemi e reti di telecomunicazione","√"]
[null,"B0201030602","DL - Sistemi elettronici ed automazione","√"]
[null,"B02010307","DL - PAESAGGIO E AMBIENTE",""]
[null,"B0201030701","DL - Interventi del verde ","√"]
[null,"B02010308","DL - TERRITORIO E URBANISTICA",""]
[null,"B0201030801","DL - Pianificazione","√"]
[null,"B020104","Collaudo (COL)",""]
[null,"B02010401","COL - COLLAUDO STATICO","√"]
[null,"B020105","Attività propedeutiche/complementari a progettazione ed esecuzione lavori",""]
[null,"B02010501","RILIEVI CELERIMETRICI","√"]
[null,"B02010502","SURVEY IMPIANTISTICHE","√"]
[null,"B02010503","GEOLOGIA","√"]
[null,"B02010504","PRATICHE AUTORIZZATIVE","√"]
[null,"B02010505","PRATICHE VVF","√"]
[null,"B02010506","PRATICHE CATASTALI","√"]
[null,"B02010507","CONSULENZE TECNICHE SPECIALISTICHE","√"]
[null,"B02010508","VERIFICA E VALIDAZIONE PROGETTI","√"]
[null,"B02010509","DIREZIONI DI ESERCIZIO IMPIANTI","√"]
[null,"B02010510","PROVE E INDAGINI","√"]
[null,"B02010511","STUDI SPECIALISTICI AERONAUTICI","√"]